[Event "4th Chessfestival Gredine 2018"]
[Site "Ortisei"]
[Date "2018.06.22"]
[Round "7.20"]
[White "Dev, Shah"]
[Black "Podetti, Davide"]
[Result "1/2-1/2"]
[ECO "D02"]
[WhiteElo "1997"]
[BlackElo "2186"]
[Annotator "NA"]
[PlyCount "39"]
[EventDate "2018.06.16"]
[EventType "swiss"]
[EventCountry "ITA"]
[SourceTitle "playchess.com"]
[Source "ChessBase"]
[SourceQuality "1"]
[TimeControl "40/5400+30:1800+30"]

1. d4 {[%emt 0:00:30]} Nf6 {[%emt 0:01:00]} 2. Bf4 {[%emt 0:00:30]} e6 {[%emt 0:00:00]} 3. e3 {[%emt 0:00:30]} d5 {[%emt 0:00:00]} 4. Nf3 {[%emt 0:00:00]} Bd6 {[%emt 0:00:00]} 5. Bg3 {[%emt 0:00:00]} O-O {[%emt 0:00:00]} 6. c4 {[%emt 0:00:30]} dxc4 {[%emt 0:10:30]} 7. Bxc4 {[%emt 0:00:30]} a6 {[%emt 0:00:00]} 8. Nc3 {[%emt 0:02:30]} c5 {[%emt 0:02:00]} 9. dxc5 {[%emt 0:09:30]} Bxc5 {[%emt 0:01:30]} 10. Qe2 {[%emt 0:00:30]} b5 {[%emt 0:00:30]} 11. Bd3 {[%emt 0:02:30]} Bb7 {[%emt 0:07:30]} 12. O-O {[%emt 0:01:30]} Nbd7 {[%emt 0:03:30]} 13. Rfd1 {[%emt 0:00:30]} Qb6 {[%emt 0:08:30]} 14. Rac1 {[%emt 0:01:30]} Rac8 {[%emt 0:01:30]} 15. a3 {[%emt 0:10:30]} Be7 {[%emt 0:00:30]} 16. b4 {[%emt 0:03:30]} Rfd8 {[%emt 0:03:30]} 17. Ne5 {[%emt 0:12:30]} Nxe5 {[%emt 0:12:30]} 18. Bxe5 {[%emt 0:04:30]} Qc6 {[%emt 0:02:30]} 19. f3 {[%emt 0:04:30]} Qe8 {[%emt 0:01:30]} 20. Bg3 {[%emt 0:08:30]} 1/2-1/2

[Event "4th Chessfestival Gredine 2018"]
[Site "Ortisei"]
[Date "2018.06.23"]
[Round "8.9"]
[White "Curien, Nicolas"]
[Black "Hecht, Hans-Joachim"]
[Result "0-1"]
[ECO "B06"]
[WhiteElo "2204"]
[BlackElo "2327"]
[Annotator "NA"]
[PlyCount "80"]
[EventDate "2018.06.20"]
[EventType "swiss"]
[EventCountry "ITA"]
[SourceTitle "playchess.com"]
[Source "ChessBase"]
[SourceQuality "1"]
[TimeControl "40/5400+30:1800+30"]

1. d4 {[%emt 0:00:30]} g6 {[%emt 0:01:00]} 2. e4 {[%emt 0:00:00]} Bg7 {[%emt 0:00:00]} 3. Nc3 {[%emt 0:00:00]} d6 {[%emt 0:00:00]} 4. Be3 {[%emt 0:00:30]} a6 {[%emt 0:01:30]} 5. Qd2 {[%emt 0:01:30]} Nd7 {[%emt 0:01:30]} 6. O-O-O {[%emt 0:02:30]} b5 {[%emt 0:00:30]} 7. h4 {[%emt 0:01:30]} Bb7 {[%emt 0:01:30]} 8. f3 {[%emt 0:04:30]} c5 {[%emt 0:18:30]} 9. h5 {[%emt 0:08:30]} cxd4 {[%emt 0:24:30]} 10. Bxd4 {[%emt 0:00:00]} Bxd4 {[%emt 0:00:30]} 11. Qxd4 {[%emt 0:01:00]} Ngf6 {[%emt 0:00:30]} 12. hxg6 {[%emt 0:03:30]} fxg6 {[%emt 0:00:00]} 13. Nh3 {[%emt 0:04:30]} Qb6 {[%emt 0:03:00]} 14. Qd2 {[%emt 0:16:30]} Rc8 {[%emt 0:05:30]} 15. Nf4 {[%emt 0:02:30]} Ne5 {[%emt 0:05:30]} 16. Kb1 {[%emt 0:01:30]} b4 {[%emt 0:05:30]} 17. Ncd5 {[%emt 0:05:30]} Bxd5 {[%emt 0:00:30]} 18. exd5 {[%emt 0:01:30]} Rc5 {[%emt 0:00:30]} 19. Bd3 {[%emt 0:11:30]} Rg8 {[%emt 0:04:30]} 20. Qf2 {[%emt 0:04:30]} Qb7 {[%emt 0:06:22]} 21. Be4 {[%emt 0:02:30]} a5 {[%emt 0:01:33]} 22. Rd4 {[%emt 0:04:30]} Kd7 {[%emt 0:04:11]} 23. Ne6 {[%emt 0:05:19]} Rc4 {[%emt 0:00:32]} 24. Rxc4 {[%emt 0:03:00]} Nxc4 {[%emt 0:00:02]} 25. Qd4 {[%emt 0:00:16]} Nb6 {[%emt 0:04:01]} 26. Nf4 {[%emt 0:02:13]} Kc8 {[%emt 0:00:23]} 27. g4 {[%emt 0:00:53]} g5 {[%emt 0:04:26]} 28. Ne6 {[%emt 0:04:01]} Kb8 {[%emt 0:00:28]} 29. Bxh7 {[%emt 0:03:02]} Rh8 {[%emt 0:01:35]} 30. Nxg5 {[%emt 0:00:19]} Nbxd5 {[%emt 0:00:05]} 31. Re1 {[%emt 0:02:52]} e5 {[%emt 0:02:02]} 32. Qd3 {[%emt 0:01:36]} Nxh7 {[%emt 0:00:44]} 33. Rh1 {[%emt 0:00:22]} Ndf6 {[%emt 0:01:44]} 34. Nxh7 {[%emt 0:03:04]} Rxh7 {[%emt 0:00:36]} 35. Qxd6+ {[%emt 0:00:22]} Qc7 {[%emt 0:00:40]} 36. Qf8+ {[%emt 0:00:20]} Kb7 {[%emt 0:00:11]} 37. Rd1 {[%emt 0:01:05]} Rh2 {[%emt 0:01:25]} 38. c3 {[%emt 0:00:41]} bxc3 {[%emt 0:00:37]} 39. Rc1 {[%emt 0:00:32]} c2+ {[%emt 0:01:10]} 40. Ka1 {[%emt 0:00:09]} Rh1 {[%emt 0:30:03]} 0-1

[Event "4th Chessfestival Gredine 2018"]
[Site "Ortisei"]
[Date "2018.06.23"]
[Round "8.10"]
[White "Fischer, Daniel"]
[Black "Wiesinger, Robert"]
[Result "1-0"]
[ECO "C54"]
[WhiteElo "2263"]
[BlackElo "2199"]
[Annotator "NA"]
[PlyCount "79"]
[EventDate "2018.06.20"]
[EventType "swiss"]
[EventCountry "ITA"]
[SourceTitle "playchess.com"]
[Source "ChessBase"]
[SourceQuality "1"]
[TimeControl "40/5400+30:1800+30"]

1. e4 {[%emt 0:00:30]} e5 {[%emt 0:01:00]} 2. Nf3 {[%emt 0:00:00]} Nc6 {[%emt 0:00:00]} 3. Bc4 {[%emt 0:00:00]} Bc5 {[%emt 0:00:00]} 4. c3 {[%emt 0:00:00]} Nf6 {[%emt 0:00:00]} 5. d3 {[%emt 0:00:00]} a6 {[%emt 0:00:00]} 6. Bb3 {[%emt 0:00:30]} d6 {[%emt 0:01:30]} 7. h3 {[%emt 0:00:30]} O-O {[%emt 0:03:30]} 8. Bg5 {[%emt 0:01:30]} h6 {[%emt 0:07:30]} 9. Bh4 {[%emt 0:00:00]} g5 {[%emt 0:17:30]} 10. Bg3 {[%emt 0:00:00]} Nh5 {[%emt 0:02:30]} 11. Bh2 {[%emt 0:00:30]} Qf6 {[%emt 0:02:30]} 12. Nbd2 {[%emt 0:02:30]} Ba7 {[%emt 0:06:30]} 13. Qe2 {[%emt 0:04:30]} Be6 {[%emt 0:13:30]} 14. O-O-O {[%emt 0:07:30]} Nf4 {[%emt 0:05:30]} 15. Bxf4 {[%emt 0:00:30]} gxf4 {[%emt 0:03:30]} 16. g4 {[%emt 0:03:30]} Kh8 {[%emt 0:04:30]} 17. Rhg1 {[%emt 0:06:30]} Rg8 {[%emt 0:00:30]} 18. Kb1 {[%emt 0:01:30]} Bd7 {[%emt 0:04:30]} 19. Bc2 {[%emt 0:14:30]} Rg7 {[%emt 0:00:30]} 20. Nb3 {[%emt 0:02:30]} Be6 {[%emt 0:04:30]} 21. Ka1 {[%emt 0:07:30]} b5 {[%emt 0:11:16]} 22. d4 {[%emt 0:11:30]} Bc4 {[%emt 0:06:22]} 23. Qd2 {[%emt 0:02:30]} a5 {[%emt 0:01:04]} 24. d5 {[%emt 0:04:30]} Bxb3 {[%emt 0:00:48]} 25. Bxb3 {[%emt 0:03:30]} Ne7 {[%emt 0:00:03]} 26. h4 {[%emt 0:02:30]} Ng8 {[%emt 0:01:20]} 27. g5 {[%emt 0:03:30]} Qg6 {[%emt 0:00:47]} 28. Bc2 {[%emt 0:06:06]} Qh5 {[%emt 0:00:10]} 29. Qe2 {[%emt 0:02:23]} hxg5 {[%emt 0:00:25]} 30. hxg5 {[%emt 0:01:39]} Rh7 {[%emt 0:00:07]} 31. Rg2 {[%emt 0:01:31]} Ne7 {[%emt 0:01:59]} 32. Rdg1 {[%emt 0:01:44]} Qh3 {[%emt 0:01:11]} 33. Rh2 {[%emt 0:05:48]} Qd7 {[%emt 0:00:42]} 34. Rxh7+ {[%emt 0:01:06]} Kxh7 {[%emt 0:00:02]} 35. g6+ {[%emt 0:00:55]} Nxg6 {[%emt 0:01:11]} 36. Ng5+ {[%emt 0:00:19]} Kg7 {[%emt 0:00:12]} 37. Qh5 {[%emt 0:00:52]} Rh8 {[%emt 0:00:16]} 38. Ne6+ {[%emt 0:00:45]} fxe6 {[%emt 0:01:33]} 39. Qxg6+ {[%emt 0:00:28]} Kf8 {[%emt 0:00:05]} 40. Qf6+ {[%emt 0:00:16]} 1-0

[Event "4th Chessfestival Gredine 2018"]
[Site "Ortisei"]
[Date "2018.06.23"]
[Round "8.14"]
[White "Hoffmann, Sebastian"]
[Black "Borgo, Giulio"]
[Result "0-1"]
[ECO "C01"]
[WhiteElo "2105"]
[BlackElo "2397"]
[Annotator "NA"]
[PlyCount "88"]
[EventDate "2018.06.20"]
[EventType "swiss"]
[EventCountry "ITA"]
[SourceTitle "playchess.com"]
[Source "ChessBase"]
[SourceQuality "1"]
[TimeControl "40/5400+30:1800+30"]

1. e4 {[%emt 0:00:30]} e6 {[%emt 0:01:00]} 2. d4 {[%emt 0:00:30]} d5 {[%emt 0:00:30]} 3. Bd3 {[%emt 0:00:00]} dxe4 {[%emt 0:00:30]} 4. Bxe4 {[%emt 0:00:00]} Nf6 {[%emt 0:00:30]} 5. Bf3 {[%emt 0:00:30]} c5 {[%emt 0:02:30]} 6. Ne2 {[%emt 0:00:30]} Nc6 {[%emt 0:00:30]} 7. Be3 {[%emt 0:00:30]} cxd4 {[%emt 0:01:30]} 8. Nxd4 {[%emt 0:00:30]} Ne5 {[%emt 0:00:30]} 9. Nc3 {[%emt 0:00:30]} a6 {[%emt 0:03:30]} 10. Qe2 {[%emt 0:02:30]} Nxf3+ {[%emt 0:12:30]} 11. Qxf3 {[%emt 0:00:30]} e5 {[%emt 0:00:30]} 12. Nf5 {[%emt 0:20:30]} Qd7 {[%emt 0:02:30]} 13. Ng3 {[%emt 0:02:30]} Qg4 {[%emt 0:12:30]} 14. Qxg4 {[%emt 0:02:30]} Bxg4 {[%emt 0:00:00]} 15. f3 {[%emt 0:02:30]} Be6 {[%emt 0:07:00]} 16. O-O-O {[%emt 0:00:30]} Rc8 {[%emt 0:00:30]} 17. Bg5 {[%emt 0:15:30]} Nd7 {[%emt 0:06:30]} 18. Nge4 {[%emt 0:06:30]} Rc6 {[%emt 0:01:30]} 19. Nd5 {[%emt 0:05:30]} f5 {[%emt 0:03:30]} 20. Nec3 {[%emt 0:01:30]} Kf7 {[%emt 0:00:30]} 21. g4 {[%emt 0:12:30]} g6 {[%emt 0:01:30]} 22. gxf5 {[%emt 0:05:40]} gxf5 {[%emt 0:00:30]} 23. Be3 {[%emt 0:01:30]} Rg8 {[%emt 0:01:30]} 24. Rhg1 {[%emt 0:01:06]} Rxg1 {[%emt 0:00:30]} 25. Bxg1 {[%emt 0:00:14]} Bd6 {[%emt 0:11:30]} 26. Ne2 {[%emt 0:03:30]} Nf6 {[%emt 0:04:30]} 27. Ndc3 {[%emt 0:03:45]} b5 {[%emt 0:04:30]} 28. a3 {[%emt 0:00:16]} Bc8 {[%emt 0:04:01]} 29. Kb1 {[%emt 0:02:06]} Bc7 {[%emt 0:01:12]} 30. Kc1 {[%emt 0:02:43]} Bb7 {[%emt 0:08:39]} 31. f4 {[%emt 0:01:53]} e4 {[%emt 0:00:34]} 32. Nd4 {[%emt 0:00:43]} Bxf4+ {[%emt 0:02:03]} 33. Kb1 {[%emt 0:00:01]} Rd6 {[%emt 0:01:28]} 34. Nxf5 {[%emt 0:00:00]} Ng4 {[%emt 0:03:23]} 35. h3 {[%emt 0:00:35]} Nf6 {[%emt 0:02:02]} 36. Rxd6 {[%emt 0:02:30]} Bxd6 {[%emt 0:00:41]} 37. Nd1 {[%emt 0:00:30]} Bf4 {[%emt 0:00:35]} 38. Be3 {[%emt 0:00:30]} Bb8 {[%emt 0:00:33]} 39. Kc1 {[%emt 0:01:33]} Bc8 {[%emt 0:00:44]} 40. Nh6+ {[%emt 0:01:28]} Kg6 {[%emt 0:30:08]} 41. h4 {[%emt 0:32:51]} Nd5 {[%emt 0:00:00]} 42. Bg5 {[%emt 0:00:00]} Bf4+ {[%emt 0:00:00]} 43. Kb1 {[%emt 0:00:00]} e3 {[%emt 0:00:00]} 44. Nxe3 {[%emt 0:00:00]} Bxe3 {[%emt 0:00:00]} 0-1

[Event "4th Chessfestival Gredine 2018"]
[Site "Ortisei"]
[Date "2018.06.23"]
[Round "8.15"]
[White "Lumachi, Gabriele"]
[Black "Herzog, Adolf"]
[Result "1/2-1/2"]
[ECO "C18"]
[WhiteElo "1989"]
[BlackElo "2344"]
[Annotator "NA"]
[PlyCount "93"]
[EventDate "2018.06.20"]
[EventType "swiss"]
[EventCountry "ITA"]
[SourceTitle "playchess.com"]
[Source "ChessBase"]
[SourceQuality "1"]
[TimeControl "40/5400+30:1800+30"]

1. e4 {[%emt 0:00:30]} e6 {[%emt 0:01:00]} 2. d4 {[%emt 0:00:00]} d5 {[%emt 0:00:00]} 3. Nc3 {[%emt 0:00:00]} Bb4 {[%emt 0:00:00]} 4. e5 {[%emt 0:00:00]} c5 {[%emt 0:00:30]} 5. a3 {[%emt 0:00:00]} Bxc3+ {[%emt 0:00:00]} 6. bxc3 {[%emt 0:00:00]} Ne7 {[%emt 0:00:00]} 7. Qg4 {[%emt 0:00:00]} O-O {[%emt 0:00:30]} 8. Bd3 {[%emt 0:00:00]} f5 {[%emt 0:00:30]} 9. exf6 {[%emt 0:00:00]} Rxf6 {[%emt 0:00:00]} 10. Bg5 {[%emt 0:00:30]} Rf7 {[%emt 0:00:00]} 11. Qh5 {[%emt 0:00:00]} g6 {[%emt 0:00:30]} 12. Qd1 {[%emt 0:00:00]} Qa5 {[%emt 0:00:30]} 13. Qd2 {[%emt 0:05:30]} Nbc6 {[%emt 0:02:30]} 14. Nf3 {[%emt 0:00:30]} Bd7 {[%emt 0:24:30]} 15. h4 {[%emt 0:03:30]} c4 {[%emt 0:00:30]} 16. Be2 {[%emt 0:00:30]} Nf5 {[%emt 0:05:30]} 17. Bf4 {[%emt 0:06:30]} Nfxd4 {[%emt 0:06:30]} 18. cxd4 {[%emt 0:14:30]} Rxf4 {[%emt 0:00:00]} 19. Rb1 {[%emt 0:07:30]} Qxd2+ {[%emt 0:03:00]} 20. Kxd2 {[%emt 0:00:30]} Nxd4 {[%emt 0:12:30]} 21. Rxb7 {[%emt 0:02:30]} c3+ {[%emt 0:02:30]} 22. Kd1 {[%emt 0:05:30]} Bc8 {[%emt 0:05:30]} 23. Rb4 {[%emt 0:02:30]} Nxe2 {[%emt 0:00:30]} 24. Kxe2 {[%emt 0:00:30]} Ba6+ {[%emt 0:00:30]} 25. Ke3 {[%emt 0:00:30]} Rxb4 {[%emt 0:05:30]} 26. axb4 {[%emt 0:00:30]} Rb8 {[%emt 0:04:30]} 27. Rb1 {[%emt 0:08:30]} Bc4 {[%emt 0:05:30]} 28. Kd4 {[%emt 0:04:30]} Be2 {[%emt 0:03:06]} 29. Ne5 {[%emt 0:10:30]} Rf8 {[%emt 0:06:08]} 30. Ke3 {[%emt 0:03:30]} Bb5 {[%emt 0:00:21]} 31. g3 {[%emt 0:01:30]} Ba4 {[%emt 0:02:09]} 32. f4 {[%emt 0:00:30]} Rb8 {[%emt 0:02:42]} 33. Kd4 {[%emt 0:05:46]} a5 {[%emt 0:02:33]} 34. Ra1 {[%emt 0:02:31]} Rxb4+ {[%emt 0:01:15]} 35. Kxc3 {[%emt 0:00:25]} Kf8 {[%emt 0:00:53]} 36. Ra2 {[%emt 0:00:53]} Ke7 {[%emt 0:00:15]} 37. Nd3 {[%emt 0:01:47]} Re4 {[%emt 0:00:57]} 38. Kd2 {[%emt 0:01:25]} Kd6 {[%emt 0:03:19]} 39. Nb2 {[%emt 0:00:36]} Bb5 {[%emt 0:01:37]} 40. Rxa5 {[%emt 0:00:05]} Kc6 {[%emt 0:30:14]} 41. Nd3 {[%emt 0:31:46]} d4 {[%emt 0:00:28]} 42. Ra3 {[%emt 0:06:56]} Kb6 {[%emt 0:01:06]} 43. Rb3 {[%emt 0:01:01]} h6 {[%emt 0:01:17]} 44. c4 {[%emt 0:01:59]} dxc3+ {[%emt 0:00:09]} 45. Rxc3 {[%emt 0:00:00]} Be8 {[%emt 0:00:00]} 46. Ne5 {[%emt 0:00:00]} Re3 {[%emt 0:00:00]} 47. Kxe3 {[%emt 0:00:00]} 1/2-1/2

[Event "4th Chessfestival Gredine 2018"]
[Site "Ortisei"]
[Date "2018.06.23"]
[Round "8.16"]
[White "Dittmar, Peter"]
[Black "Moroder, Stefan"]
[Result "1/2-1/2"]
[ECO "B51"]
[WhiteElo "2252"]
[BlackElo "2183"]
[Annotator "NA"]
[PlyCount "57"]
[EventDate "2018.06.20"]
[EventType "swiss"]
[EventCountry "ITA"]
[SourceTitle "playchess.com"]
[Source "ChessBase"]
[SourceQuality "1"]
[TimeControl "40/5400+30:1800+30"]

1. e4 {[%emt 0:00:30]} c5 {[%emt 0:01:00]} 2. Nf3 {[%emt 0:00:30]} d6 {[%emt 0:01:30]} 3. Bb5+ {[%emt 0:00:00]} Nd7 {[%emt 0:00:00]} 4. O-O {[%emt 0:00:00]} a6 {[%emt 0:01:00]} 5. Bxd7+ {[%emt 0:00:30]} Bxd7 {[%emt 0:00:00]} 6. d4 {[%emt 0:00:30]} cxd4 {[%emt 0:00:00]} 7. Qxd4 {[%emt 0:00:00]} e5 {[%emt 0:00:30]} 8. Qd3 {[%emt 0:00:00]} Rc8 {[%emt 0:00:30]} 9. Rd1 {[%emt 0:03:30]} h6 {[%emt 0:17:30]} 10. c4 {[%emt 0:01:30]} Nf6 {[%emt 0:14:30]} 11. b3 {[%emt 0:01:30]} b5 {[%emt 0:03:30]} 12. Nbd2 {[%emt 0:02:30]} b4 {[%emt 0:04:30]} 13. a3 {[%emt 0:00:30]} a5 {[%emt 0:00:30]} 14. axb4 {[%emt 0:00:30]} axb4 {[%emt 0:00:00]} 15. Nf1 {[%emt 0:00:30]} Be7 {[%emt 0:08:00]} 16. Be3 {[%emt 0:07:30]} Bc6 {[%emt 0:09:30]} 17. Ng3 {[%emt 0:01:30]} Ra8 {[%emt 0:00:00]} 18. Nd2 {[%emt 0:01:30]} g6 {[%emt 0:01:00]} 19. f3 {[%emt 0:00:30]} Kf8 {[%emt 0:03:30]} 20. Ndf1 {[%emt 0:01:30]} Kg7 {[%emt 0:02:30]} 21. Qd2 {[%emt 0:00:30]} Qb8 {[%emt 0:04:30]} 22. Rxa8 {[%emt 0:02:30]} Bxa8 {[%emt 0:03:30]} 23. Ne2 {[%emt 0:01:30]} Nd7 {[%emt 0:03:30]} 24. Nc1 {[%emt 0:03:30]} Nc5 {[%emt 0:00:30]} 25. Qb2 {[%emt 0:02:30]} Bc6 {[%emt 0:04:50]} 26. Bxc5 {[%emt 0:04:30]} dxc5 {[%emt 0:00:02]} 27. Ne3 {[%emt 0:00:00]} Bg5 {[%emt 0:01:56]} 28. Ng4 {[%emt 0:02:00]} f6 {[%emt 0:02:18]} 29. Qf2 {[%emt 0:22:30]} 1/2-1/2

[Event "4th Chessfestival Gredine 2018"]
[Site "Ortisei"]
[Date "2018.06.23"]
[Round "8.18"]
[White "Movileanu, Daniela"]
[Black "Dev, Shah"]
[Result "1-0"]
[ECO "C55"]
[WhiteElo "2199"]
[BlackElo "1997"]
[Annotator "NA"]
[PlyCount "97"]
[EventDate "2018.06.20"]
[EventType "swiss"]
[EventCountry "ITA"]
[SourceTitle "playchess.com"]
[Source "ChessBase"]
[SourceQuality "1"]
[TimeControl "40/5400+30:1800+30"]

1. e4 {[%emt 0:00:30]} e5 {[%emt 0:01:00]} 2. Nf3 {[%emt 0:00:00]} Nc6 {[%emt 0:00:30]} 3. Bc4 {[%emt 0:00:00]} Nf6 {[%emt 0:00:30]} 4. d3 {[%emt 0:00:30]} Be7 {[%emt 0:00:30]} 5. O-O {[%emt 0:01:30]} O-O {[%emt 0:00:00]} 6. Re1 {[%emt 0:00:30]} d6 {[%emt 0:00:00]} 7. a4 {[%emt 0:00:30]} Na5 {[%emt 0:00:30]} 8. Ba2 {[%emt 0:01:30]} c5 {[%emt 0:00:00]} 9. c3 {[%emt 0:01:30]} Nc6 {[%emt 0:00:00]} 10. Na3 {[%emt 0:00:30]} a6 {[%emt 0:01:30]} 11. Bd2 {[%emt 0:02:30]} Be6 {[%emt 0:09:30]} 12. Bxe6 {[%emt 0:02:30]} fxe6 {[%emt 0:00:30]} 13. Qe2 {[%emt 0:02:30]} Qc7 {[%emt 0:05:30]} 14. Nc2 {[%emt 0:18:30]} Rae8 {[%emt 0:14:30]} 15. d4 {[%emt 0:05:30]} Nd7 {[%emt 0:02:30]} 16. b4 {[%emt 0:16:30]} exd4 {[%emt 0:08:30]} 17. cxd4 {[%emt 0:00:30]} cxd4 {[%emt 0:20:30]} 18. Ncxd4 {[%emt 0:10:30]} Bf6 {[%emt 0:00:30]} 19. Rac1 {[%emt 0:01:30]} Qb6 {[%emt 0:07:30]} 20. Nxc6 {[%emt 0:03:30]} bxc6 {[%emt 0:00:00]} 21. a5 {[%emt 0:00:30]} Qb7 {[%emt 0:03:00]} 22. Qc4 {[%emt 0:00:30]} Nb8 {[%emt 0:13:01]} 23. e5 {[%emt 0:02:30]} dxe5 {[%emt 0:01:59]} 24. Nxe5 {[%emt 0:00:30]} Bxe5 {[%emt 0:00:08]} 25. Rxe5 {[%emt 0:00:00]} Qf7 {[%emt 0:00:15]} 26. Re2 {[%emt 0:00:00]} Rd8 {[%emt 0:00:17]} 27. Be3 {[%emt 0:05:30]} Rd5 {[%emt 0:00:42]} 28. Bb6 {[%emt 0:00:30]} Qd7 {[%emt 0:02:28]} 29. Ree1 {[%emt 0:02:30]} Rff5 {[%emt 0:02:52]} 30. g3 {[%emt 0:01:46]} Qf7 {[%emt 0:03:49]} 31. Re4 {[%emt 0:02:37]} h6 {[%emt 0:01:40]} 32. Qe2 {[%emt 0:03:32]} e5 {[%emt 0:00:44]} 33. Be3 {[%emt 0:02:28]} Kh7 {[%emt 0:01:18]} 34. Rec4 {[%emt 0:04:52]} g6 {[%emt 0:00:25]} 35. Kg2 {[%emt 0:02:04]} Qd7 {[%emt 0:00:25]} 36. Rh4 {[%emt 0:01:21]} g5 {[%emt 0:00:23]} 37. Re4 {[%emt 0:01:38]} Rd3 {[%emt 0:00:51]} 38. Rc5 {[%emt 0:01:31]} Rd5 {[%emt 0:00:32]} 39. Rc1 {[%emt 0:01:17]} Rf6 {[%emt 0:00:36]} 40. h4 {[%emt 0:01:16]} Qf5 {[%emt 0:01:05]} 41. Rg4 {[%emt 0:06:38]} Rg6 {[%emt 0:10:30]} 42. hxg5 {[%emt 0:03:30]} hxg5 {[%emt 0:09:16]} 43. Rh1+ {[%emt 0:00:30]} Kg7 {[%emt 0:00:54]} 44. Rh5 {[%emt 0:00:30]} Qd3 {[%emt 0:00:08]} 45. Qxd3 {[%emt 0:01:30]} Rxd3 {[%emt 0:00:01]} 46. Rhxg5 {[%emt 0:00:30]} Rxg5 {[%emt 0:00:08]} 47. Rxg5+ {[%emt 0:00:00]} Kf6 {[%emt 0:00:02]} 48. Rg8 {[%emt 0:01:00]} Nd7 {[%emt 0:00:10]} 49. Ra8 {[%emt 0:00:30]} 1-0

[Event "4th Chessfestival Gredine 2018"]
[Site "Ortisei"]
[Date "2018.06.23"]
[Round "8.20"]
[White "Podetti, Davide"]
[Black "Riebel, Werner"]
[Result "1-0"]
[ECO "B28"]
[WhiteElo "2186"]
[BlackElo "2113"]
[Annotator "NA"]
[PlyCount "41"]
[EventDate "2018.06.20"]
[EventType "swiss"]
[EventCountry "ITA"]
[SourceTitle "playchess.com"]
[Source "ChessBase"]
[SourceQuality "1"]
[TimeControl "40/5400+30:1800+30"]

1. e4 {[%emt 0:00:30]} c5 {[%emt 0:01:00]} 2. Nf3 {[%emt 0:00:00]} a6 {[%emt 0:00:00]} 3. d4 {[%emt 0:01:00]} cxd4 {[%emt 0:00:00]} 4. Nxd4 {[%emt 0:00:30]} Nf6 {[%emt 0:00:30]} 5. Nc3 {[%emt 0:00:00]} e5 {[%emt 0:00:00]} 6. Nf3 {[%emt 0:03:00]} Bb4 {[%emt 0:00:00]} 7. Bd2 {[%emt 0:02:30]} d6 {[%emt 0:00:30]} 8. Bd3 {[%emt 0:03:30]} Be6 {[%emt 0:01:30]} 9. O-O {[%emt 0:00:30]} Nbd7 {[%emt 0:00:30]} 10. a3 {[%emt 0:08:30]} Bxc3 {[%emt 0:04:30]} 11. Bxc3 {[%emt 0:00:30]} Nc5 {[%emt 0:05:30]} 12. Re1 {[%emt 0:05:30]} Qc7 {[%emt 0:05:30]} 13. Qd2 {[%emt 0:01:30]} O-O {[%emt 0:06:30]} 14. Bb4 {[%emt 0:06:30]} h6 {[%emt 0:05:30]} 15. Qe3 {[%emt 0:06:30]} b5 {[%emt 0:05:30]} 16. Nxe5 {[%emt 0:04:30]} Nxd3 {[%emt 0:18:30]} 17. Nxd3 {[%emt 0:00:00]} Qxc2 {[%emt 0:01:30]} 18. Rec1 {[%emt 0:00:00]} Qa4 {[%emt 0:00:30]} 19. Bxd6 {[%emt 0:01:30]} Rfe8 {[%emt 0:03:30]} 20. Bb4 {[%emt 0:01:30]} Nd7 {[%emt 0:02:30]} 21. b3 1-0

[Event "4th Chessfestival Gredine 2018"]
[Site "Ortisei"]
[Date "2018.06.24"]
[Round "9.6"]
[White "Hecht, Hans Joachim"]
[Black "Sarkar, Justin"]
[Result "0-1"]
[ECO "D96"]
[WhiteElo "2327"]
[BlackElo "2297"]
[Annotator "ChessBase"]
[PlyCount "56"]
[EventDate "2018.06.16"]
[EventType "swiss"]
[EventCountry "ITA"]
[SourceTitle "playchess.com"]
[Source "ChessBase"]
[SourceQuality "1"]
[TimeControl "40/5400+30:1800+30"]

1. d4 {[%emt 0:00:30]} Nf6 {[%emt 0:01:00]} 2. c4 {[%emt 0:00:00]} g6 {[%emt 0:01:30]} 3. Nc3 {[%emt 0:00:00]} d5 {[%emt 0:00:30]} 4. Nf3 {[%emt 0:00:30]} Bg7 {[%emt 0:00:30]} 5. Qb3 {[%emt 0:00:00]} dxc4 {[%emt 0:01:30]} 6. Qxc4 {[%emt 0:00:00]} Be6 {[%emt 0:01:30]} 7. Qa4+ {[%emt 0:06:30]} Bd7 {[%emt 0:01:30]} 8. Qc2 {[%emt 0:00:30]} c5 {[%emt 0:00:30]} 9. d5 {[%emt 0:19:30]} e6 {[%emt 0:01:30]} 10. e4 {[%emt 0:08:30]} exd5 {[%emt 0:00:30]} 11. e5 {[%emt 0:01:30]} Ng4 {[%emt 0:07:30]} 12. Nxd5 {[%emt 0:15:30]} Nxe5 {[%emt 0:03:30]} 13. Nxe5 {[%emt 0:04:30]} Bxe5 {[%emt 0:00:30]} 14. Bh6 {[%emt 0:13:30]} Nc6 {[%emt 0:13:30]} 15. O-O-O {[%emt 0:05:30]} Qh4 {[%emt 0:03:30]} 16. Qd2 {[%emt 0:01:30]} O-O-O {[%emt 0:00:30]} 17. Bg5 {[%emt 0:00:30]} Qa4 {[%emt 0:02:30]} 18. Nc3 {[%emt 0:12:21]} Bxc3 {[%emt 0:03:30]} 19. Qxc3 {[%emt 0:00:06]} Bg4 {[%emt 0:08:30]} 20. Be2 {[%emt 0:01:47]} Bxe2 {[%emt 0:01:30]} 21. Rxd8+ {[%emt 0:00:53]} Rxd8 {[%emt 0:00:30]} 22. Bxd8 {[%emt 0:00:04]} Qf4+ {[%emt 0:06:30]} 23. Qd2 {[%emt 0:02:45]} Qc4+ {[%emt 0:00:00]} 24. Kb1 {[%emt 0:00:02]} Bd3+ {[%emt 0:04:00]} 25. Ka1 {[%emt 0:00:07]} Nb4 {[%emt 0:00:30]} 26. b3 {[%emt 0:01:40]} Qd4+ {[%emt 0:00:30]} 27. Qb2 {[%emt 0:00:00]} Nc2+ {[%emt 0:00:30]} 28. Kb1 {[%emt 0:00:00]} Kxd8 {[%emt 0:02:30]} 0-1

[Event "4th Chessfestival Gredine 2018"]
[Site "Ortisei"]
[Date "2018.06.24"]
[Round "9.9"]
[White "Tan, Justin"]
[Black "Zucchelli, Massimo"]
[Result "1-0"]
[ECO "D30"]
[WhiteElo "2281"]
[BlackElo "2089"]
[Annotator "ChessBase"]
[PlyCount "49"]
[EventDate "2018.06.16"]
[EventType "swiss"]
[EventCountry "ITA"]
[SourceTitle "playchess.com"]
[Source "ChessBase"]
[SourceQuality "1"]
[TimeControl "40/5400+30:1800+30"]

1. Nf3 {[%emt 0:00:30]} d5 {[%emt 0:01:00]} 2. e3 {[%emt 0:00:30]} Nf6 {[%emt 0:00:30]} 3. c4 {[%emt 0:00:30]} c6 {[%emt 0:01:30]} 4. d4 {[%emt 0:01:30]} e6 {[%emt 0:02:30]} 5. Bd3 {[%emt 0:00:30]} Nbd7 {[%emt 0:03:30]} 6. O-O {[%emt 0:00:30]} Bd6 {[%emt 0:00:30]} 7. Nc3 {[%emt 0:05:30]} O-O {[%emt 0:01:30]} 8. e4 {[%emt 0:01:30]} dxe4 {[%emt 0:00:30]} 9. Nxe4 {[%emt 0:00:00]} Nxe4 {[%emt 0:00:30]} 10. Bxe4 {[%emt 0:00:00]} Nf6 {[%emt 0:00:30]} 11. Bc2 {[%emt 0:00:30]} h6 {[%emt 0:00:30]} 12. b3 {[%emt 0:03:30]} b6 {[%emt 0:05:30]} 13. Bb2 {[%emt 0:00:30]} Bb7 {[%emt 0:02:30]} 14. Qd3 {[%emt 0:00:30]} Re8 {[%emt 0:03:30]} 15. Rfe1 {[%emt 0:01:30]} Qc7 {[%emt 0:09:30]} 16. c5 {[%emt 0:13:30]} bxc5 {[%emt 0:09:30]} 17. dxc5 {[%emt 0:00:30]} Bxc5 {[%emt 0:00:30]} 18. Bxf6 {[%emt 0:05:30]} gxf6 {[%emt 0:00:30]} 19. Qh7+ {[%emt 0:01:30]} Kf8 {[%emt 0:00:30]} 20. Nh4 {[%emt 0:04:30]} Ke7 {[%emt 0:27:30]} 21. Rad1 {[%emt 0:06:30]} Bxf2+ {[%emt 0:06:30]} 22. Kxf2 {[%emt 0:00:30]} Qf4+ {[%emt 0:00:30]} 23. Kg1 {[%emt 0:01:30]} Qxh4 {[%emt 0:00:30]} 24. Rxe6+ {[%emt 0:00:30]} Kxe6 {[%emt 0:00:30]} 25. Qf5+ 1-0